Cogmind - Beta 16.1 --- EXPLORER MODE // 2026.03.19 @ 18:02:32 Player: burekzfinezt Result: Destroyed by Y-45 Defender with Beam Rifle Performance ------------- Evolutions (1) 500 Regions Visited (3) 600 Robots Destroyed (19) 95 Value Destroyed (496) 496 Prototype IDs (0) 0 Alien Tech Used (0) 0 Bonus (0) 0 TOTAL SCORE: 1691 Bonus ------- None Cogmind --------- Core Integrity 0/400 Matter 254/300 Energy 100/100 System Corruption 0% Temperature Cool (21) Movement Core (1350) Ox26 Location -9/Storage Parts ------- > --- POWER (3) -------- (None) > --- PROPULSION (2) --- (None) > --- UTILITY (3) ------ Huge Storage Unit > --- WEAPON (2) ------- (None) > --- INVENTORY (25) --- (None) Peak State ------------ > --- POWER ------------ Ion Engine Light Ion Engine > --- PROPULSION ------- Light Treads Light Treads > --- UTILITY ---------- Light Armor Plating Light Armor Plating > --- WEAPON ----------- EM Pulse Gun Small Laser > --- INVENTORY -------- Aluminum Leg Aluminum Leg Medium Storage Unit EM Pulse Gun [Rating: 8] Favorites ----------- Power Ion Engine Engine Ion Engine Propulsion Light Treads Treads Light Treads Leg Aluminum Leg Utility Light Armor Plating Storage Huge Storage Unit Protection Light Armor Plating Weapon Light Assault Rifle Energy Gun EM Pulse Gun Ballistic Gun Light Assault Rifle Launcher Grenade Launcher Build | -11 -10 -9 -9 ------- Run | Yrd Mat Mat Sto Slots Evolved 3 | . 1 2 . Power 2 | . 1 1 . Propulsion . | . . . . Utility 1 | . . 1 . Weapon . | . . . . Parts Attached 19 | 7 9 . 3 Power 6 | 1 3 . 2 Engine 6 | 1 3 . 2 Core . | . . . . Reactor . | . . . . Propulsion 4 | 2 2 . . Treads 2 | 2 . . . Leg 2 | . 2 . . Wheel . | . . . . Hover . | . . . . Flight . | . . . . Utility 3 | 2 1 . . Device . | . . . . Storage 1 | . 1 . . Processor . | . . . . Hackware . | . . . . Protection 2 | 2 . . . Artifact . | . . . . Weapon 6 | 2 3 . 1 Energy Gun 3 | 2 1 . . Energy Cannon . | . . . . Ballistic Gun 2 | . 1 . 1 Ballistic Cannon . | . . . . Launcher 1 | . 1 . . Special Weapon . | . . . . Impact Weapon . | . . . . Slashing Weapon . | . . . . Piercing Weapon . | . . . . Special Melee Weapon . | . . . . Unidentified Prototypes . | . . . . Parts Lost 12 | . . . 12 Power 4 | . . . 4 Propulsion 3 | . . . 3 Utility 1 | . . . 1 Weapon 4 | . . . 4 Highest Loss Streak 7 | . . . 7 To Critical Strikes . | . . . . Average Backups 4 | 2 4 3 2 Power . | . . . . Propulsion 1 | . 2 2 1 Utility . | . . . . Weapon 1 | . 1 1 . Tool/Special . | . . . . Unused Backups 3 | . 3 . . Power 1 | . 1 . . Propulsion . | . . . . Utility 2 | . 2 . . Weapon . | . . . . Tool/Special . | . . . . Average Slot Usage (%) 94 | . 99 80 57 Engine 23 | . 24 20 12 Treads 15 | . 17 . 3 Leg 7 | . 7 20 11 Storage 9 | . 9 10 10 Protection 13 | . 14 10 5 Energy Gun 9 | . 11 . . Ballistic Gun 11 | . 11 10 7 Launcher 1 | . 1 10 5 Peak Build Rating 8 | 7 8 8 8 Average Rating 7 | 5 7 8 5 On Entrance 5 | . 7 8 8 Avg Prop Armor Cover (%) . | . . . . Naked Turns . | . . . . Heaviest Build 97 | 14 97 97 97 Greatest Support 40 | 40 40 20 40 Greatest Overweight (x) 28 | . 4 4 28 Average Overweight (x) 1 | . 1 4 5 Largest Inventory Capacity 25 | 5 25 25 25 Average Capacity 20 | 5 21 25 25 Most Carried 7 | 5 7 3 3 Average Carried 4 | 2 4 3 2 Final Capacity 25 | 5 25 25 25 Final Carried 5 | 5 3 3 . Class Distribution -------------------- 100% | Hacker-Mutant Dominant Class ---------------- Hacker-Mutant | -10/Materials Hacker-Mutant | -9/Materials Hacker-Mutant | -9/Storage Resources | -11 -10 -9 -9 ----------- Run | Yrd Mat Mat Sto Matter Collected 503 | 238 220 . 45 Remotely . | . . . . Salvage Created 448 | . 350 . 98 Parts 39 | . 29 . 10 Haulers Intercepted . | . . . . Recyclers Shooed 2 | . 1 . 1 Parts Field Recycled . | . . . . Retrieved Matter . | . . . . Parts Self-Destructed . | . . . . Prevented . | . . . . Parts Restored . | . . . . Kills | -11 -10 -9 -9 ------- Run | Yrd Mat Mat Sto Combat Hostiles Destroyed 17 | . 11 . 6 Guns 10 | . 9 . 1 AOE 7 | . 2 . 5 Classes Destroyed 4 | . 4 . . Worker 1 | . 1 . . Builder 1 | . 1 . . Swarmer 6 | . 4 . 2 Grunt 11 | . 7 . 4 Best Kill Streak 4 | . 4 . 3 Combat Bots Only 3 | . 2 . 3 Max Kills in Single Turn 3 | . 2 . 3 Gunslinging 1 | . 1 . . Exploded 3 | . 2 . 3 Melee . | . . . . Uniques/NPCs Destroyed . | . . . . Combat | -11 -10 -9 -9 -------- Run | Yrd Mat Mat Sto Hostile Shots Fired 267 | . 64 . 203 Missed 82 | . 14 . 68 Hits 185 | . 50 . 135 Melee 18 | . . . 18 Projectile 167 | . 50 . 117 Critical Strikes 1 | . . . 1 Damage Taken 1641 | . 363 . 1278 Core 448 | . 40 . 408 Absorbed by Shields . | . . . . Ignored by Resistances 1027 | . 233 . 794 Core Remaining (%) 92 | 100 84 . . Volleys Fired 50 | . 28 . 22 Largest 2 | . 2 . 2 Hottest 60 | . 60 . 50 Shots Fired 82 | . 56 . 26 Gun 71 | . 53 . 18 Cannon . | . . . . Launcher 11 | . 3 . 8 Special . | . . . . Kinetic 43 | . 28 . 15 Thermal . | . . . . Explosive 11 | . 3 . 8 Electromagnetic 28 | . 25 . 3 Robot Hit Streak 24 | . 24 . 14 Robot Miss Streak 2 | . 2 . 1 Penetration Max . | . . . . Secondary Targets 1 | . 1 . . Max Gunslinging Chain 1 | . 1 . . Shots Hit Robots 71 | . 48 . 23 Core Hits 36 | . 23 . 13 Critical Kills . | . . . . Critical Parts Destroyed . | . . . . Critical Strikes . | . . . . Melee Attacks . | . . . . Impact . | . . . . Slashing . | . . . . Piercing . | . . . . Sneak Attacks . | . . . . Combat Hostiles . | . . . . Follow-up Attacks . | . . . . Damage Inflicted 1637 | . 919 . 718 Guns 615 | . 477 . 138 Cannons . | . . . . Explosions 1021 | . 442 . 579 Melee . | . . . . Ramming 1 | . . . 1 Kinetic 278 | . 173 . 105 Thermal 282 | . 282 . . Explosive 739 | . 160 . 579 Electromagnetic 337 | . 304 . 33 Impact . | . . . . Slashing . | . . . . Piercing . | . . . . Highest Corruption . | . . . . Average Corruption . | . . . . Corruption Purged . | . . . . Corruption Blocked . | . . . . Overload Shots . | . . . . Overflow Damage 63 | . 42 . 21 Projectiles . | . . . . Explosions 63 | . 42 . 21 Melee . | . . . . Knockbacks . | . . . . Impact . | . . . . Kinetic . | . . . . Secondary . | . . . . Self-Inflicted Damage 54 | . . . 54 Shots 5 | . . . 5 Rammed 1 | . . . 1 Targets Rammed 1 | . . . 1 Kicked . | . . . . Crushed . | . . . . Highest Temperature 378 | . 378 . 25 Average Temperature 89 | . 106 . 10 Received Heat Transfer 927 | . 291 . 636 Effects 1 | . 1 . . Shutdowns 1 | . 1 . . Siege Activations . | . . . . Martial Activations . | . . . . Shielding Activations . | . . . . Robots Disrupted . | . . . . Combat Hostiles . | . . . . Robots Corrupted . | . . . . Combat Hostiles . | . . . . Parts Fried 1 | . 1 . . Impact Corruptions . | . . . . Robots Melted . | . . . . Combat Hostiles . | . . . . Parts Melted . | . . . . Heat Transferred 250 | . 250 . . Parts Sabotaged . | . . . . Parts Stolen . | . . . . Parts Stripped . | . . . . Power Chain Reactions 1 | . 1 . . Alert | -11 -10 -9 -9 ------- Run | Yrd Mat Mat Sto Maximum Alert Level . | . . . . Low Security (%) 100 | 100 100 100 100 Level 1 . | . . . . Level 2 . | . . . . Level 3 . | . . . . Level 4 . | . . . . Level 5 . | . . . . High Security . | . . . . Max Security . | . . . . Peak Influence 105 | . 83 . 105 Initial . | . . . . Average 7 | . 7 . 19 Influence Increases 511 | . 339 . 172 Destroy 0b10 Robot/C 340 | . 220 . 120 Destroy 0b10 Robot/NC 10 | . 10 . . Destroy Leader 90 | . 60 . 30 Successful Hack 3 | . 3 . . Disable Machine 12 | . 8 . 4 Destroy Structure 41 | . 23 . 18 Lose Combat Pursuer 15 | . 15 . . Influence Decreases 511 | . 339 . 172 Time Decay 411 | . 339 . 72 Lost Part 100 | . . . 100 Squads Dispatched 7 | . 2 . 5 Investigation 2 | . 2 . . Extermination . | . . . . Reinforcement 3 | . . . 3 Assault . | . . . . Garrison 2 | . . . 2 Intercept . | . . . . Searches Triggered . | . . . . Construction Impeded 1 | . . . 1 Haulers Reinforced . | . . . . Active Scanning Responses . | . . . . Cargo Convoy Interrupts . | . . . . Stealth | -11 -10 -9 -9 --------- Run | Yrd Mat Mat Sto Distress Signals 2 | . 1 . 1 Communications Jammed . | . . . . Distress Signals . | . . . . Times Spotted 36 | . 20 . 16 Peak Tracking Total 7 | . 4 . 7 Tactical Retreats 1 | . 1 . . Traps | -11 -10 -9 -9 ------- Run | Yrd Mat Mat Sto Traps Triggered 2 | . 2 . . Indirectly . | . . . . Trap Hack Attempts . | . . . . Triggered . | . . . . Disarmed . | . . . . Reprogrammed . | . . . . Reused . | . . . . Traps Extracted . | . . . . Installed . | . . . . Triggered . | . . . . Machines | -11 -10 -9 -9 ---------- Run | Yrd Mat Mat Sto Machines Disabled 3 | . 2 . 1 Max in Single Turn 1 | . 1 . 1 Machines Repaired . | . . . . Machines Dismantled . | . . . . Machines Sabotaged . | . . . . Overloaded Fab Kills . | . . . . Hacking | -11 -10 -9 -9 --------- Run | Yrd Mat Mat Sto Machines Accessed 4 | . 4 . . Terminals 2 | . 2 . . Fabricators . | . . . . Repair Stations . | . . . . Recycling Units 2 | . 2 . . Scanalyzers . | . . . . Garrison Access . | . . . . Total Hacks 11 | . 11 . . Successful 10 | . 10 . . Failed 1 | . 1 . . Catastrophic . | . . . . Database Lockouts . | . . . . Manual . | . . . . Terminals 7 | . 7 . . Fabricators . | . . . . Repair Stations . | . . . . Recycling Units 4 | . 4 . . Scanalyzers . | . . . . Garrison Access . | . . . . Terminal Hacks 7 | . 7 . . Record 5 | . 5 . . Alert Level 1 | . 1 . . Investigation Status 1 | . 1 . . Fabricator Hacks . | . . . . Repair Station Hacks . | . . . . Recycling Unit Hacks 3 | . 3 . . Recycle Component 1 | . 1 . . Process 1 | . 1 . . Retrieve Components 1 | . 1 . . Scanalyzer . | . . . . Garrison Access Hacks . | . . . . Unauthorized Hacks . | . . . . Terminals . | . . . . Fabricators . | . . . . Repair Stations . | . . . . Recycling Units . | . . . . Scanalyzers . | . . . . Garrison Access . | . . . . Data Cores Recovered . | . . . . Used . | . . . . Hacking Detections 4 | . 4 . . Full Trace Events 3 | . 3 . . Feedback Events . | . . . . Feedback Blocked . | . . . . Robot Schematics Acquired . | . . . . Robots Built . | . . . . Authchips . | . . . . Time . | . . . . Total Robot Build Rating . | . . . . Part Schematics Acquired . | . . . . Parts Built . | . . . . Authchips . | . . . . Time . | . . . . Total Part Build Rating . | . . . . Part Studies Acquired . | . . . . Parts Repaired . | . . . . Time . | . . . . Parts Recycled 1 | . 1 . . Recycled Matter 286 | . 286 . . Retrieved Matter . | . . . . Retrieved Components 1 | . 1 . . Parts Scanalyzed . | . . . . Part Schematics Acquired . | . . . . Parts Damaged . | . . . . Bothacking | -11 -10 -9 -9 ------------ Run | Yrd Mat Mat Sto Used RIF Installer . | . . . . Robots Hacked . | . . . . Non-combat . | . . . . Combat . | . . . . Robot Hacks Applied . | . . . . Relay Couplers Released . | . . . . Fabnet Peak Effective % . | . . . . Robots Rewired . | . . . . Allies Hacked . | . . . . Hacks Repelled . | . . . . Allies | -11 -10 -9 -9 -------- Run | Yrd Mat Mat Sto Total Allies . | . . . . Largest Group . | . . . . Highest-Rated Group . | . . . . Highest-Rated Ally . | . . . . Total Orders . | . . . . Ally Attacks . | . . . . Total Damage . | . . . . Kills . | . . . . Allies Corrupted . | . . . . Allies Melted . | . . . . Intel | -11 -10 -9 -9 ------- Run | Yrd Mat Mat Sto Active Infowar (turns) . | . . . . Robot Analysis Total . | . . . . Derelict Logs Recovered . | . . . . Drone Launches . | . . . . Drone Recoveries . | . . . . Exploration | -11 -10 -9 -9 ------------- Run | Yrd Mat Mat Sto Turns Passed 2074 | 196 1644 28 206 Spaces Moved 694 | 118 536 8 32 Core 11 | 9 . . 2 Treads 538 | 109 423 . 6 Legs 145 | . 113 8 24 Wheels . | . . . . Hover . | . . . . Flight . | . . . . Fastest Speed 50 | 50 160 400 240 Average Speed 271 | 151 285 400 442 Slowest Speed 1450 | 160 480 400 1450 Overloaded Moves . | . . . . Propulsion Burnouts . | . . . . Robots Hopped . | . . . . Potential Cave-ins . | . . . . Cave-ins Triggered . | . . . . Exploration Rate (%) 19 | 5 58 3 10 Regions Visited 3 Branch Regions 1 Pre-discovered Areas . | . . . . Known Exits Taken 3 | 1 1 1 . Unknown Exits Taken . | . . . . Scrap Searched . | . . . . Spaces Dug . | . . . . Terrain Destroyed 48 | . 23 . 25 Melee . | . . . . Projectile . | . . . . AOE 48 | . 23 . 25 Terrain Rammed . | . . . . Walls Destroyed . | . . . . Machines Disabled . | . . . . Actions | -11 -10 -9 -9 --------- Run | Yrd Mat Mat Sto Total 809 | 135 603 7 64 Wait 8 | . 8 . . Move 691 | 117 535 7 32 Hop . | . . . . Pick Up 22 | 11 8 . 3 Fast Attach 2 | 1 1 . . Attach 17 | 6 5 . 6 Detach 3 | . 3 . . Swap 7 | . 7 . . Drop 8 | . 8 . . Fire 50 | . 28 . 22 Melee . | . . . . Ram 1 | . . . 1 Kick . | . . . . Crush . | . . . . Escape Stasis . | . . . . Rewire . | . . . . Trap . | . . . . Miscellaneous . | . . . . Route ------- -11/Scrapyard -10/Materials (discovered 2 exits: *Mat / *Min) -9/Materials -9/Storage History --------- Turn | Location | Event 4 | -11/Scrapyard | Identified exit to Materials 4 | -11/Scrapyard | Discovered exit to Materials (range 13) 197 | -11/Scrapyard | Entered Materials 197 | -10/Materials | Evolved 1 slot: Power x1 305 | -10/Materials | Build established: Hacker-Mutant 467 | -10/Materials | Identified exit to Mines 467 | -10/Materials | Discovered exit to Mines (range 6) 1733 | -10/Materials | Identified exit to Materials 1733 | -10/Materials | Discovered exit to Materials (range 16) 1841 | -10/Materials | Entered another Materials area 1841 | -9/Materials | Evolved 2 slots: Power x1, Utility x1 1841 | -9/Materials | Identified exit to Storage 1841 | -9/Materials | Discovered exit to Storage (range 8) 1869 | -9/Materials | Entered Storage 1956 | -9/Storage | Garrison activated, responded to threat 2024 | -9/Storage | Core integrity fell below 50% 2028 | -9/Storage | Lost 7 parts (2p1n1u3w) 2068 | -9/Storage | Core integrity fell below 20% 2075 | -9/Storage | Destroyed by Y-45 Defender with Beam Rifle Last Messages --------------- 02057_ U-05 Engineer lays Concrete. 02058_ R-06 Scavenger collects Sml. Laser. 02059_ U-05 Engineer builds a Wall. 02060_ Acquired 33 matter. 02062_ U-05 Engineer lays Concrete. 02062_ R-06 Scavenger collects Aluminum Leg. 02063_ U-05 Engineer lays Concrete. 02063_ Lgt. Treads destroyed. 02064_ U-05 Engineer destroyed. 02065_ Slammed into G-34 Mercenary. [Achievement: For Emergencies Only] 02065_ U-05 Engineer lays Concrete. 02065_ Lgt. Ion Engine destroyed. 02067_ R-06 Scavenger collects Aluminum Leg. 02069_ U-05 Engineer builds a Wall. 02070_ R-06 Scavenger collects Terrain Scan Processor. 02072_ Lgt. Assault Rifle destroyed. 02072_ U-05 Engineer lays Concrete. 02073_ U-05 Engineer builds a Wall. Map ----- +----------------------------------------------------+ | | | | | | | | | | | | | | | | | | | | | | | | | | | | | | | | | ?????????????????????????????????????????????????? | | ?????????????????????????????????????????????????? | | ?????????????????????????????????????????????????? | | ?????????????????????????????????????????????????? | | ????????????#######??????????????????????????????? | | ??########### #################### ????????? | | ??# ^ ???????? | | ??# " ^ T????????? | | ??# ^ ???????? | | ??########### ###### @= ########?????????????? | | ????????????###+###???# gggY# #?????????????????? | | ??????????????????????# # g #?????????????????? | | ??????????????????????# #u # # #???????????????? | | ?????????????????????# "" % # ?????????????? | | ?????????????????????#"G|r # """ ???????????? | | ?????????????????????# ""%= # """????????????? | | ?????????????????????####! # """ ""?????????????? | | ???????????????????????## + """ ""?????????????? | | ????????????????????????" # """ ""?????????????? | | ????????????????????????Y % # ?? ?????????????? | | ????????????????????????" # ?????????????????? | | ????????????????????????# Y####?????????????????? | | ????????????????????????# #????????????????????? | | ????????????????????????T #????????????????????? | | ????????????????????????? ?????????????????????? | | ????????????????????????? ?????????????????????? | | ?????????????????????????????????????????????????? | | ?????????????????????????????????????????????????? | | ?????????????????????????????????????????????????? | | ?????????????????????????????????????????????????? | | ?????????????????????????????????????????????????? | | ?????????????????????????????????????????????????? | | ?????????????????????????????????????????????????? | | ?????????????????????????????????????????????????? | +----------------------------------------------------+ Best States ------------- Heat Dissipation 28 Energy Generation 15 Energy Capacity 400 Matter Stores 300 Matter Capacity 300 Sight Range 16 Terrain Scan Density 10 Armor Coverage 300 Resistance: KI 35 Resistance: TH 35 Resistance: EX 35 Resistance: EM 35 Resistance: I 35 Resistance: S 35 Resistance: P 35 Evasion (%) 40 Recoil Reduction 2 Offensive Hacking 20 Item Schematics ----------------- None Robot Schematics ------------------ None Fabricated ------------ Nothing Repaired ---------- Nothing Studied --------- None Alien Tech Used ----------------- None Achievements -------------- DATA ERROR: Steam Global Achievement% For Emergencies Only There's More Where That Came From Troublemaker Challenges ------------ None Game ------ Seed AmuletGrapheneShield Manual? 0 Play Time 00:24:20 Cumulative 4.2 hours Start 2026.03.19 @ 17:36:17 End 2026.03.19 @ 18:02:32 Sessions 1 Manual Loads 0 Difficulty Explorer Special Mode None Game No. 14 Rogue 10 Adventurer 0 Explorer 4 Win Type - Total 0 Types 0/0/0/0/0/0/0/0/0/0 Lore% 3 Gallery% 8 Achievement% 6 Wizard Run 0 Options --------- Layout 1 ASCII 0 Keyboard 0 Movement Mouse Keybinds 0 Fullscreen 1 Font 16/Terminus Map View 27x19 Zoom Use 98% Tactical HUD 1 Map Filters NONE Filters NONE Steam 1 RUN: c5b7f9a3-89db-464a-a891-cc7945d7970b